[Event "22nd ETCC Women 2019"]
[Site "Batumi"]
[Date "2019.10.25"]
[Round "2.23"]
[White "Longson, Sarah N"]
[Black "Barbier, Astrid"]
[Result "1/2-1/2"]
[ECO "B27"]
[WhiteElo "2073"]
[BlackElo "1974"]
[Annotator "NA"]
[PlyCount "137"]
[EventDate "2019.10.24"]
[EventType "team-tourn"]
[EventCountry "GEO"]
[SourceTitle "playchess.com"]
[Source "ChessBase"]
[SourceQuality "1"]
[WhiteTeam "England"]
[BlackTeam "Belgium"]
[WhiteTeamCountry "ENG"]
[BlackTeamCountry "BEL"]
[TimeControl "40/5400+30:1800+30"]

1. e4 {[%emt 0:00:00]} c5 {[%emt 0:00:00]} 2. Nf3 {[%emt 0:00:00]} g6 {[%emt 0:00:00]} 3. d4 {[%emt 0:00:00]} cxd4 {[%emt 0:00:00]} 4. Qxd4 {[%emt 0:00:00]} Nf6 {[%emt 0:00:00]} 5. e5 {[%emt 0:00:15]} Nc6 {[%emt 0:00:00]} 6. Qa4 {[%emt 0:00:31]} Nd5 {[%emt 0:00:21]} 7. Qb3 {[%emt 0:00:38]} Nb6 {[%emt 0:04:08]} 8. Bf4 {[%emt 0:01:09]} Bg7 {[%emt 0:06:21]} 9. Nc3 {[%emt 0:00:28]} d5 {[%emt 0:07:13]} 10. exd6 {[%emt 0:01:44]} O-O {[%emt 0:02:16]} 11. O-O-O {[%emt 0:01:15]} Be6 {[%emt 0:18:27]} 12. Qa3 {[%emt 0:01:28]} Bxc3 {[%emt 0:13:43]} 13. Qxc3 {[%emt 0:03:48]} Nd5 {[%emt 0:02:30]} 14. Rxd5 {[%emt 0:03:56]} Bxd5 {[%emt 0:01:37]} 15. Bh6 {[%emt 0:00:20]} f6 {[%emt 0:00:24]} 16. Bxf8 {[%emt 0:04:11]} Kxf8 {[%emt 0:01:50]} 17. dxe7+ {[%emt 0:02:00]} Qxe7 {[%emt 0:00:57]} 18. Bc4 {[%emt 0:07:11]} Bxf3 {[%emt 0:13:12]} 19. Qxf3 {[%emt 0:03:02]} Ne5 {[%emt 0:00:45]} 20. Qd5 {[%emt 0:00:20]} Nxc4 {[%emt 0:00:28]} 21. Qxc4 {[%emt 0:00:02]} Rd8 {[%emt 0:03:02]} 22. Qc3 {[%emt 0:06:08]} Kg7 {[%emt 0:02:16]} 23. Re1 {[%emt 0:07:03]} Qd6 {[%emt 0:00:57]} 24. Qe3 {[%emt 0:00:39]} Rd7 {[%emt 0:01:15]} 25. g3 {[%emt 0:08:10]} b6 {[%emt 0:01:11]} 26. a3 {[%emt 0:08:41]} Qd5 {[%emt 0:05:48]} 27. Qe8 {[%emt 0:03:48]} Qd6 {[%emt 0:02:12]} 28. h4 {[%emt 0:01:18]} Qd2+ {[%emt 0:07:00]} 29. Kb1 {[%emt 0:00:10]} Qd6 {[%emt 0:00:06]} 30. h5 {[%emt 0:01:03]} Qd5 {[%emt 0:05:02]} 31. hxg6 {[%emt 0:04:03]} hxg6 {[%emt 0:00:09]} 32. Re7+ {[%emt 0:00:08]} Rxe7 {[%emt 0:00:12]} 33. Qxe7+ {[%emt 0:00:02]} Kh6 {[%emt 0:01:22]} 34. Qe3+ {[%emt 0:12:30]} Kg7 {[%emt 0:00:19]} 35. Qd3 {[%emt 0:01:18]} Qe6 {[%emt 0:00:22]} 36. f4 {[%emt 0:01:08]} Qe1+ {[%emt 0:01:04]} 37. Ka2 {[%emt 0:00:02]} Qe6+ {[%emt 0:00:08]} 38. b3 {[%emt 0:00:18]} Qc6 {[%emt 0:00:14]} 39. Kb2 {[%emt 0:01:06]} Qc7 {[%emt 0:00:16]} 40. Qd4 {[%emt 0:00:00]} Qe7 {[%emt 0:00:00]} 41. a4 {[%emt 0:03:24]} Kh6 {[%emt 0:07:21]} 42. Qd5 {[%emt 0:06:38]} g5 {[%emt 0:04:15]} 43. f5 {[%emt 0:10:23]} Kh5 {[%emt 0:06:32]} 44. Qf3+ {[%emt 0:05:29]} g4 {[%emt 0:03:40]} 45. Qh1+ {[%emt 0:00:56]} Kg5 {[%emt 0:00:11]} 46. Qh4+ {[%emt 0:00:20]} Kxf5 {[%emt 0:00:30]} 47. Qh5+ {[%emt 0:00:06]} Ke4 {[%emt 0:02:01]} 48. Qxg4+ {[%emt 0:00:11]} Ke3 {[%emt 0:00:10]} 49. Qf4+ {[%emt 0:01:26]} Ke2 {[%emt 0:00:16]} 50. g4 {[%emt 0:03:28]} Qd8 {[%emt 0:02:39]} 51. Qe4+ {[%emt 0:04:29]} Kf2 {[%emt 0:01:13]} 52. b4 {[%emt 0:05:44]} Kg3 {[%emt 0:01:18]} 53. Qf5 {[%emt 0:11:07]} Qe7 {[%emt 0:03:42]} 54. Kb3 {[%emt 0:01:08]} Qd8 {[%emt 0:00:34]} 55. Kc3 {[%emt 0:01:08]} Qc7+ {[%emt 0:01:34]} 56. Kb3 {[%emt 0:00:31]} Qd8 {[%emt 0:00:09]} 57. Qe6 {[%emt 0:01:05]} Qd4 {[%emt 0:01:14]} 58. a5 {[%emt 0:00:34]} bxa5 {[%emt 0:01:03]} 59. bxa5 {[%emt 0:00:05]} Qa1 {[%emt 0:01:29]} 60. Qe3+ {[%emt 0:00:37]} Kxg4 {[%emt 0:00:09]} 61. Qxa7 {[%emt 0:00:07]} Qb1+ {[%emt 0:00:30]} 62. Kc3 {[%emt 0:00:13]} Qe1+ {[%emt 0:00:51]} 63. Kb2 {[%emt 0:00:58]} Qb4+ {[%emt 0:00:21]} 64. Ka2 {[%emt 0:00:17]} Qa4+ {[%emt 0:00:28]} 65. Kb1 {[%emt 0:00:14]} Qb4+ {[%emt 0:00:11]} 66. Ka2 {[%emt 0:01:03]} Qa4+ {[%emt 0:00:04]} 67. Kb1 {[%emt 0:00:29]} Qb4+ {[%emt 0:00:05]} 68. Ka1 {[%emt 0:00:21]} Qa4+ {[%emt 0:00:07]} 69. Kb1 1/2-1/2

[Event "22nd ETCC Women 2019"]
[Site "Batumi"]
[Date "2019.10.25"]
[Round "2.24"]
[White "Lehaci, Miruna-Daria"]
[Black "Ratsma, Rosa"]
[Result "1-0"]
[ECO "D45"]
[WhiteElo "2131"]
[BlackElo "2283"]
[Annotator "NA"]
[PlyCount "53"]
[EventDate "2019.10.24"]
[EventType "team-tourn"]
[EventCountry "GEO"]
[SourceTitle "playchess.com"]
[Source "ChessBase"]
[SourceQuality "1"]
[WhiteTeam "Romania"]
[BlackTeam "Netherlands"]
[WhiteTeamCountry "ROU"]
[BlackTeamCountry "NED"]
[TimeControl "40/5400+30:1800+30"]

1. d4 {[%emt 0:00:00]} Nf6 {[%emt 0:00:00]} 2. Nf3 {[%emt 0:00:00]} d5 {[%emt 0:00:00]} 3. c4 {[%emt 0:00:00]} e6 {[%emt 0:00:09]} 4. Nc3 {[%emt 0:00:00]} c6 {[%emt 0:06:26]} 5. e3 {[%emt 0:00:46]} Be7 {[%emt 0:00:38]} 6. Bd3 {[%emt 0:01:02]} dxc4 {[%emt 0:02:27]} 7. Bxc4 {[%emt 0:00:07]} Nbd7 {[%emt 0:04:09]} 8. a4 {[%emt 0:07:01]} O-O {[%emt 0:03:05]} 9. O-O {[%emt 0:00:44]} c5 {[%emt 0:02:17]} 10. Qe2 {[%emt 0:06:30]} cxd4 {[%emt 0:04:41]} 11. exd4 {[%emt 0:02:09]} Nb6 {[%emt 0:00:30]} 12. Bb3 {[%emt 0:05:30]} Nbd5 {[%emt 0:05:56]} 13. Ne5 {[%emt 0:07:38]} Nb4 {[%emt 0:15:40]} 14. Rd1 {[%emt 0:04:57]} b6 {[%emt 0:03:44]} 15. Na2 {[%emt 0:14:52]} Nfd5 {[%emt 0:06:59]} 16. Nxb4 {[%emt 0:08:54]} Nxb4 {[%emt 0:12:19]} 17. Qe4 {[%emt 0:03:38]} Ba6 {[%emt 0:03:25]} 18. Nxf7 {[%emt 0:13:19]} Rxf7 {[%emt 0:00:23]} 19. Bxe6 {[%emt 0:00:36]} Rc8 {[%emt 0:07:25]} 20. Ra3 {[%emt 0:02:14]} Bc4 {[%emt 0:04:18]} 21. Rh3 {[%emt 0:02:04]} g6 {[%emt 0:01:49]} 22. d5 {[%emt 0:00:43]} Bxd5 {[%emt 0:08:32]} 23. Bxf7+ {[%emt 0:01:18]} Kxf7 {[%emt 0:02:53]} 24. Rxh7+ {[%emt 0:00:07]} Kf6 {[%emt 0:01:26]} 25. Bg5+ {[%emt 0:00:39]} Kxg5 {[%emt 0:00:08]} 26. Qe5+ Kg4 {[%emt 0:00:06]} 27. h3# {[%emt 0:00:15]} 1-0

[Event "22nd ETCC Women 2019"]
[Site "Batumi"]
[Date "2019.10.25"]
[Round "2.24"]
[White "Cuvelier, Annelies"]
[Black "Bhatia, Kanwal K"]
[Result "0-1"]
[ECO "C95"]
[WhiteElo "1844"]
[BlackElo "2038"]
[Annotator "NA"]
[PlyCount "118"]
[EventDate "2019.10.24"]
[EventType "team-tourn"]
[EventCountry "GEO"]
[SourceTitle "playchess.com"]
[Source "ChessBase"]
[SourceQuality "1"]
[WhiteTeam "Belgium"]
[BlackTeam "England"]
[WhiteTeamCountry "BEL"]
[BlackTeamCountry "ENG"]
[TimeControl "40/5400+30:1800+30"]

1. e4 {[%emt 0:00:00]} e5 {[%emt 0:00:00]} 2. Nf3 {[%emt 0:00:00]} Nc6 {[%emt 0:00:00]} 3. Bb5 {[%emt 0:00:00]} a6 {[%emt 0:00:00]} 4. Ba4 {[%emt 0:00:00]} Nf6 {[%emt 0:00:00]} 5. O-O {[%emt 0:00:04]} Be7 {[%emt 0:00:45]} 6. Re1 {[%emt 0:00:26]} b5 {[%emt 0:00:09]} 7. Bb3 {[%emt 0:00:04]} d6 {[%emt 0:00:09]} 8. c3 {[%emt 0:00:08]} O-O {[%emt 0:00:12]} 9. h3 {[%emt 0:00:26]} Nb8 {[%emt 0:00:46]} 10. d4 {[%emt 0:00:38]} Nbd7 {[%emt 0:00:09]} 11. Nbd2 Bb7 {[%emt 0:00:14]} 12. Bc2 {[%emt 0:02:48]} Re8 {[%emt 0:00:25]} 13. Nf1 Bf8 {[%emt 0:00:16]} 14. Ng3 {[%emt 0:01:37]} g6 {[%emt 0:00:21]} 15. a4 {[%emt 0:13:22]} c5 {[%emt 0:01:01]} 16. d5 {[%emt 0:01:33]} c4 {[%emt 0:00:38]} 17. Bg5 {[%emt 0:03:07]} Be7 {[%emt 0:01:32]} 18. Be3 {[%emt 0:13:27]} Qc7 {[%emt 0:04:49]} 19. Qd2 {[%emt 0:01:42]} Reb8 {[%emt 0:06:02]} 20. Ra3 {[%emt 0:03:20]} Nc5 {[%emt 0:11:14]} 21. Bg5 {[%emt 0:14:43]} Bc8 {[%emt 0:03:22]} 22. axb5 {[%emt 0:14:22]} Rxb5 {[%emt 0:09:26]} 23. Ba4 {[%emt 0:02:00]} Rb6 {[%emt 0:05:22]} 24. Qc2 {[%emt 0:06:03]} Rab8 {[%emt 0:00:53]} 25. Re2 {[%emt 0:02:38]} Rxb2 {[%emt 0:24:31]} 26. Qxb2 {[%emt 0:02:39]} Rxb2 {[%emt 0:00:06]} 27. Rxb2 {[%emt 0:00:05]} Nfxe4 {[%emt 0:02:35]} 28. Nxe4 {[%emt 0:01:18]} Nxe4 {[%emt 0:00:04]} 29. Bxe7 {[%emt 0:02:35]} Qxe7 {[%emt 0:00:14]} 30. Rb8 {[%emt 0:00:52]} Qc7 {[%emt 0:00:55]} 31. Ra8 {[%emt 0:02:32]} Qc5 {[%emt 0:07:28]} 32. Ra1 {[%emt 0:01:44]} Kg7 {[%emt 0:01:44]} 33. Kh2 {[%emt 0:02:28]} Bb7 {[%emt 0:02:02]} 34. Re8 {[%emt 0:00:57]} Qxf2 {[%emt 0:01:32]} 35. Bc6 {[%emt 0:01:58]} Qb6 {[%emt 0:02:11]} 36. Bxb7 {[%emt 0:01:39]} Qxb7 {[%emt 0:00:07]} 37. Rd8 {[%emt 0:00:21]} Kf6 {[%emt 0:11:57]} 38. Ra4 {[%emt 0:00:28]} Ke7 {[%emt 0:00:18]} 39. Rh8 {[%emt 0:00:21]} Qb5 {[%emt 0:01:39]} 40. Rb4 {[%emt 0:00:00]} Qxd5 {[%emt 0:00:00]} 41. Rxh7 {[%emt 0:01:00]} Nf6 {[%emt 0:03:55]} 42. Rh8 {[%emt 0:00:35]} e4 {[%emt 0:01:05]} 43. Nd4 {[%emt 0:00:21]} e3 {[%emt 0:06:01]} 44. Rc8 {[%emt 0:03:09]} Ne4 {[%emt 0:03:56]} 45. Rbxc4 {[%emt 0:02:11]} Qe5+ {[%emt 0:02:09]} 46. Kg1 {[%emt 0:00:37]} Kf6 {[%emt 0:03:50]} 47. Nf3 {[%emt 0:00:55]} e2 {[%emt 0:05:29]} 48. Ra4 {[%emt 0:05:49]} Qf4 {[%emt 0:01:20]} 49. Ra1 {[%emt 0:00:55]} Qe3+ {[%emt 0:02:35]} 50. Kh2 {[%emt 0:00:11]} Qf2 {[%emt 0:01:49]} 51. Re8 {[%emt 0:02:07]} Ng3 {[%emt 0:01:41]} 52. Re1 {[%emt 0:04:22]} Nf1+ {[%emt 0:00:13]} 53. Kh1 {[%emt 0:00:05]} Ng3+ {[%emt 0:00:44]} 54. Kh2 {[%emt 0:00:06]} Nf1+ {[%emt 0:00:02]} 55. Kh1 {[%emt 0:00:04]} Ne3 {[%emt 0:00:03]} 56. Rg1 {[%emt 0:00:49]} Nf1 {[%emt 0:00:48]} 57. c4 {[%emt 0:01:51]} a5 {[%emt 0:00:22]} 58. h4 {[%emt 0:01:41]} Kg7 {[%emt 0:00:20]} 59. Re7 {[%emt 0:01:53]} a4 {[%emt 0:00:16]} 0-1

[Event "22nd ETCC Women 2019"]
[Site "Batumi"]
[Date "2019.10.25"]
[Round "2.25"]
[White "Rapport, Jovana"]
[Black "Socko, Monika"]
[Result "0-1"]
[ECO "A48"]
[WhiteElo "2379"]
[BlackElo "2417"]
[Annotator "NA"]
[PlyCount "148"]
[EventDate "2019.10.24"]
[EventType "team-tourn"]
[EventCountry "GEO"]
[SourceTitle "playchess.com"]
[Source "ChessBase"]
[SourceQuality "1"]
[WhiteTeam "Serbia"]
[BlackTeam "Poland"]
[WhiteTeamCountry "SRB"]
[BlackTeamCountry "POL"]
[TimeControl "40/5400+30:1800+30"]

1. d4 {[%emt 0:00:00]} Nf6 {[%emt 0:00:00]} 2. Nf3 {[%emt 0:00:00]} g6 {[%emt 0:00:00]} 3. Nc3 {[%emt 0:00:02]} d5 {[%emt 0:00:00]} 4. Bf4 {[%emt 0:00:09]} Bg7 {[%emt 0:00:00]} 5. e3 {[%emt 0:00:59]} O-O $11 {[%emt 0:00:19]} 6. Nb5 {[%emt 0:00:27]} Na6 {[%emt 0:00:13]} 7. h3 {[%emt 0:02:31]} Ne4 {[%emt 0:00:14]} 8. Be2 {[%emt 0:03:05]} c6 {[%emt 0:01:24]} 9. Na3 {[%emt 0:06:26]} Nc7 {[%emt 0:15:44]} 10. c4 {[%emt 0:03:31]} Ne6 11. Be5 Qa5+ {[%emt 0:06:11]} 12. Kf1 {[%emt 0:13:02]} f6 {[%emt 0:01:45]} 13. Bh2 {[%emt 0:00:28]} N6g5 {[%emt 0:11:05]} 14. Qe1 {[%emt 0:05:13]} Qb6 {[%emt 0:05:09]} 15. Rb1 {[%emt 0:04:38]} e5 {[%emt 0:08:24]} 16. c5 {[%emt 0:09:28]} Qd8 {[%emt 0:00:33]} 17. h4 {[%emt 0:01:52]} Nf7 {[%emt 0:00:25]} 18. b4 {[%emt 0:09:16]} Nh6 {[%emt 0:05:02]} 19. Nc2 {[%emt 0:04:33]} Ng4 {[%emt 0:02:50]} 20. Bg1 {[%emt 0:00:07]} h5 {[%emt 0:01:27]} 21. Nh2 {[%emt 0:04:23]} f5 {[%emt 0:03:37]} 22. f4 {[%emt 0:13:52]} exf4 {[%emt 0:01:23]} 23. exf4 {[%emt 0:00:02]} a5 {[%emt 0:04:12]} 24. Nf3 {[%emt 0:05:12]} axb4 {[%emt 0:00:06]} 25. Nxb4 {[%emt 0:00:07]} Ra3 {[%emt 0:00:40]} 26. Rh3 {[%emt 0:03:38]} Bh6 {[%emt 0:10:32]} 27. Ng5 {[%emt 0:02:21]} Bxg5 {[%emt 0:02:56]} 28. hxg5 {[%emt 0:01:32]} Ra4 {[%emt 0:00:25]} 29. Rb2 {[%emt 0:00:52]} Qc7 {[%emt 0:04:35]} 30. Qc1 {[%emt 0:00:50]} Re8 {[%emt 0:00:28]} 31. Bd1 {[%emt 0:00:41]} Ra8 {[%emt 0:01:21]} 32. Nd3 {[%emt 0:00:17]} Qe7 {[%emt 0:04:24]} 33. Ne5 {[%emt 0:04:03]} Nxe5 {[%emt 0:00:47]} 34. dxe5 {[%emt 0:00:02]} Ra5 {[%emt 0:00:08]} 35. Rc2 {[%emt 0:01:10]} Be6 {[%emt 0:00:19]} 36. Bd4 {[%emt 0:01:06]} Rea8 {[%emt 0:00:04]} 37. a3 {[%emt 0:01:23]} Ra4 {[%emt 0:01:46]} 38. Rd3 {[%emt 0:01:01]} Rc4 {[%emt 0:00:38]} 39. Qe3 {[%emt 0:00:17]} Ra5 {[%emt 0:00:38]} 40. Bc3 {[%emt 0:00:00]} Rxa3 {[%emt 0:00:00]} 41. Bd4 {[%emt 0:09:15]} Rxd3 {[%emt 0:05:47]} 42. Qxd3 {[%emt 0:00:08]} Nxc5 {[%emt 0:00:19]} 43. Qe3 {[%emt 0:01:29]} Rxc2 {[%emt 0:04:34]} 44. Bxc2 {[%emt 0:00:03]} Nd7 {[%emt 0:00:14]} 45. Qb3 {[%emt 0:03:24]} b5 {[%emt 0:00:35]} 46. Bf2 {[%emt 0:07:57]} d4 {[%emt 0:06:43]} 47. Qb1 {[%emt 0:03:25]} Qc5 {[%emt 0:04:29]} 48. Bb3 {[%emt 0:03:50]} Kf7 {[%emt 0:05:44]} 49. Qd1 {[%emt 0:02:17]} Bc4+ {[%emt 0:09:16]} 50. Kg1 {[%emt 0:00:09]} Ke6 {[%emt 0:02:59]} 51. Bxd4 {[%emt 0:02:01]} Qd5 {[%emt 0:00:48]} 52. Bxc4 {[%emt 0:00:29]} bxc4 {[%emt 0:00:31]} 53. Qa1 {[%emt 0:00:17]} Qe4 {[%emt 0:01:17]} 54. g3 {[%emt 0:00:23]} h4 {[%emt 0:00:43]} 55. Qc3 {[%emt 0:00:36]} hxg3 {[%emt 0:00:58]} 56. Qxc4+ {[%emt 0:00:02]} Qd5 {[%emt 0:00:27]} 57. Qxd5+ {[%emt 0:03:32]} Kxd5 {[%emt 0:00:21]} 58. Be3 Nf8 {[%emt 0:00:51]} 59. Kg2 {[%emt 0:00:37]} Ke4 {[%emt 0:00:13]} 60. Bc1 {[%emt 0:00:18]} Ne6 {[%emt 0:00:32]} 61. Kxg3 {[%emt 0:00:03]} c5 {[%emt 0:00:28]} 62. Kf2 {[%emt 0:00:07]} Kd3 {[%emt 0:00:05]} 63. Ke1 {[%emt 0:01:17]} Kc2 {[%emt 0:00:01]} 64. Be3 {[%emt 0:00:19]} c4 {[%emt 0:00:08]} 65. Ke2 {[%emt 0:00:01]} c3 {[%emt 0:00:08]} 66. Ke1 {[%emt 0:01:31]} Kb2 {[%emt 0:00:28]} 67. Ke2 {[%emt 0:00:07]} c2 {[%emt 0:00:10]} 68. Kd3 {[%emt 0:00:01]} c1=Q {[%emt 0:00:12]} 69. Bxc1+ {[%emt 0:00:04]} Kxc1 {[%emt 0:00:03]} 70. Kc4 {[%emt 0:00:45]} Nxf4 {[%emt 0:00:49]} 71. Kc5 {[%emt 0:00:01]} Ne6+ {[%emt 0:00:32]} 72. Kd6 {[%emt 0:00:01]} Nxg5 {[%emt 0:00:05]} 73. Ke7 {[%emt 0:00:02]} f4 {[%emt 0:01:15]} 74. Kf6 {[%emt 0:00:01]} Ne4+ {[%emt 0:00:09]} 0-1

[Event "22nd ETCC Women 2019"]
[Site "Batumi"]
[Date "2019.10.25"]
[Round "2.25"]
[White "Stojkovska, Monika"]
[Black "Unuk, Laura"]
[Result "1-0"]
[ECO "D35"]
[WhiteElo "2108"]
[BlackElo "2278"]
[Annotator "NA"]
[PlyCount "77"]
[EventDate "2019.10.24"]
[EventType "team-tourn"]
[EventCountry "GEO"]
[SourceTitle "playchess.com"]
[Source "ChessBase"]
[SourceQuality "1"]
[WhiteTeam "Macedonia"]
[BlackTeam "Slovenia"]
[WhiteTeamCountry "MKD"]
[BlackTeamCountry "SLO"]
[TimeControl "40/5400+30:1800+30"]

1. d4 {[%emt 0:00:00]} Nf6 {[%emt 0:01:06]} 2. c4 {[%emt 0:00:00]} e6 {[%emt 0:00:30]} 3. Nc3 {[%emt 0:00:00]} d5 {[%emt 0:05:47]} 4. cxd5 {[%emt 0:00:52]} exd5 {[%emt 0:00:20]} 5. Bg5 {[%emt 0:00:15]} c6 {[%emt 0:02:54]} 6. e3 {[%emt 0:00:11]} h6 {[%emt 0:00:11]} 7. Bh4 {[%emt 0:03:16]} Be7 {[%emt 0:00:51]} 8. Qc2 {[%emt 0:00:33]} Nbd7 {[%emt 0:02:47]} 9. Bd3 {[%emt 0:03:11]} O-O {[%emt 0:02:32]} 10. Nf3 {[%emt 0:02:44]} Re8 {[%emt 0:01:06]} 11. Bg3 {[%emt 0:03:58]} Qa5 {[%emt 0:24:05]} 12. h3 {[%emt 0:06:06]} c5 {[%emt 0:00:56]} 13. O-O {[%emt 0:14:25]} c4 {[%emt 0:06:02]} 14. Bf5 {[%emt 0:02:17]} Bf8 {[%emt 0:17:04]} 15. Ne5 {[%emt 0:17:48]} Nxe5 {[%emt 0:13:14]} 16. dxe5 {[%emt 0:05:12]} Bxf5 {[%emt 0:04:05]} 17. Qxf5 {[%emt 0:00:21]} Nh7 {[%emt 0:00:20]} 18. Rfd1 {[%emt 0:04:53]} Rad8 {[%emt 0:00:09]} 19. Bh4 {[%emt 0:11:05]} g5 {[%emt 0:06:21]} 20. Bg3 {[%emt 0:00:18]} Bb4 {[%emt 0:02:22]} 21. e6 {[%emt 0:03:05]} Rxe6 {[%emt 0:01:41]} 22. Nxd5 {[%emt 0:00:28]} Rde8 {[%emt 0:05:43]} 23. Qc2 {[%emt 0:01:06]} Rc6 {[%emt 0:00:18]} 24. a3 {[%emt 0:02:01]} Bf8 {[%emt 0:00:05]} 25. Qf5 {[%emt 0:01:59]} Qc5 {[%emt 0:00:49]} 26. Rac1 {[%emt 0:00:35]} Bg7 {[%emt 0:00:31]} 27. b4 {[%emt 0:01:31]} Qf8 {[%emt 0:00:03]} 28. Rc2 {[%emt 0:02:13]} Rec8 {[%emt 0:00:42]} 29. Qd7 {[%emt 0:02:05]} Re6 {[%emt 0:01:03]} 30. Qxb7 {[%emt 0:00:48]} Nf6 {[%emt 0:00:46]} 31. Nc7 {[%emt 0:01:37]} Re7 {[%emt 0:00:23]} 32. Rxc4 {[%emt 0:00:58]} Rb8 {[%emt 0:00:42]} 33. Qf3 {[%emt 0:00:27]} Rc8 {[%emt 0:00:25]} 34. Bd6 {[%emt 0:00:59]} g4 {[%emt 0:00:32]} 35. hxg4 {[%emt 0:00:15]} Kh8 {[%emt 0:00:30]} 36. Bxe7 {[%emt 0:01:17]} Qxe7 {[%emt 0:00:03]} 37. Nd5 {[%emt 0:00:21]} Qe6 {[%emt 0:00:31]} 38. Rxc8+ {[%emt 0:00:10]} Qxc8 {[%emt 0:00:03]} 39. Nxf6 {[%emt 0:00:06]} 1-0

[Event "22nd ETCC Women 2019"]
[Site "Batumi"]
[Date "2019.10.25"]
[Round "2.26"]
[White "Janzelj, Lara"]
[Black "Bejatovic, Bojana"]
[Result "1-0"]
[ECO "E93"]
[WhiteElo "2159"]
[BlackElo "2004"]
[Annotator "NA"]
[PlyCount "113"]
[EventDate "2019.10.24"]
[EventType "team-tourn"]
[EventCountry "GEO"]
[SourceTitle "playchess.com"]
[Source "ChessBase"]
[SourceQuality "1"]
[WhiteTeam "Slovenia"]
[BlackTeam "Macedonia"]
[WhiteTeamCountry "SLO"]
[BlackTeamCountry "MKD"]
[TimeControl "40/5400+30:1800+30"]

1. d4 {[%emt 0:00:00]} Nf6 {[%emt 0:00:00]} 2. c4 {[%emt 0:00:00]} g6 {[%emt 0:00:00]} 3. Nc3 {[%emt 0:00:00]} Bg7 {[%emt 0:00:00]} 4. e4 {[%emt 0:00:00]} d6 {[%emt 0:00:00]} 5. Be2 {[%emt 0:00:50]} O-O {[%emt 0:00:01]} 6. Nf3 {[%emt 0:00:05]} e5 {[%emt 0:00:38]} 7. d5 {[%emt 0:00:05]} Nbd7 {[%emt 0:00:03]} 8. Be3 {[%emt 0:00:15]} Ng4 {[%emt 0:02:28]} 9. Bg5 {[%emt 0:00:06]} f6 {[%emt 0:00:07]} 10. Bc1 {[%emt 0:00:04]} a5 {[%emt 0:05:25]} 11. h3 {[%emt 0:07:06]} Nh6 {[%emt 0:00:33]} 12. h4 {[%emt 0:02:51]} Nc5 {[%emt 0:08:15]} 13. h5 {[%emt 0:01:38]} g5 {[%emt 0:03:36]} 14. Be3 {[%emt 0:00:36]} Nf7 {[%emt 0:09:28]} 15. Qc2 {[%emt 0:05:17]} Bd7 {[%emt 0:13:48]} 16. Nh2 {[%emt 0:01:12]} Qc8 {[%emt 0:01:56]} 17. g4 {[%emt 0:00:39]} Na6 {[%emt 0:10:25]} 18. f3 {[%emt 0:02:00]} Nb4 {[%emt 0:07:50]} 19. Qd2 {[%emt 0:01:43]} Re8 {[%emt 0:04:47]} 20. Nf1 {[%emt 0:00:34]} h6 {[%emt 0:00:35]} 21. Ng3 {[%emt 0:00:20]} Bf8 {[%emt 0:02:05]} 22. O-O {[%emt 0:01:37]} a4 {[%emt 0:02:45]} 23. Bd1 {[%emt 0:02:50]} a3 {[%emt 0:06:48]} 24. b3 {[%emt 0:08:33]} c6 {[%emt 0:01:03]} 25. Nb1 {[%emt 0:00:43]} c5 {[%emt 0:03:13]} 26. Qc1 {[%emt 0:05:45]} Ra5 {[%emt 0:03:04]} 27. Be2 {[%emt 0:00:50]} Qa8 {[%emt 0:00:57]} 28. Bd2 {[%emt 0:01:02]} Rc8 {[%emt 0:04:07]} 29. Kg2 {[%emt 0:00:22]} Qa7 {[%emt 0:00:08]} 30. Nc3 {[%emt 0:01:03]} Qb6 {[%emt 0:02:34]} 31. Nb5 {[%emt 0:01:38]} Rca8 {[%emt 0:01:06]} 32. Qc3 {[%emt 0:03:50]} Be7 {[%emt 0:01:25]} 33. Rfc1 {[%emt 0:00:49]} Bd8 {[%emt 0:01:58]} 34. Qe3 {[%emt 0:00:56]} Kh7 {[%emt 0:02:23]} 35. Bf1 {[%emt 0:00:43]} Rc8 {[%emt 0:00:28]} 36. Qe1 {[%emt 0:01:03]} Ra6 {[%emt 0:02:51]} 37. Bxb4 cxb4 38. Qxb4 {[%emt 0:02:22]} Bxb5 {[%emt 0:00:55]} 39. cxb5 {[%emt 0:01:16]} Raa8 {[%emt 0:00:03]} 40. Nf5 {[%emt 0:00:00]} Bc7 {[%emt 0:00:00]} 41. Rc2 {[%emt 0:03:22]} Rd8 {[%emt 0:05:07]} 42. Qc3 {[%emt 0:05:38]} Bb8 {[%emt 0:01:37]} 43. Bd3 {[%emt 0:00:36]} Ba7 {[%emt 0:00:13]} 44. Qc7 {[%emt 0:01:16]} Kg8 {[%emt 0:01:34]} 45. Qe7 {[%emt 0:00:17]} Rdc8 {[%emt 0:02:08]} 46. Rxc8+ {[%emt 0:12:05]} Rxc8 {[%emt 0:00:02]} 47. Rf1 Qd8 {[%emt 0:03:28]} 48. Qxb7 {[%emt 0:04:53]} Rc7 {[%emt 0:02:19]} 49. Qa6 {[%emt 0:00:06]} Bc5 {[%emt 0:00:54]} 50. Rc1 {[%emt 0:05:44]} Ra7 {[%emt 0:02:24]} 51. Qxa7 {[%emt 0:00:29]} Bxa7 {[%emt 0:00:07]} 52. Rc8 {[%emt 0:00:04]} Qxc8 {[%emt 0:00:53]} 53. Ne7+ Kf8 54. Nxc8 {[%emt 0:00:10]} Bb8 {[%emt 0:00:54]} 55. b6 {[%emt 0:02:53]} Ke8 {[%emt 0:01:07]} 56. Bb5+ {[%emt 0:00:30]} Kd8 {[%emt 0:00:22]} 57. Na7 {[%emt 0:00:05]} 1-0